fUSD/lending_fUSD_20250105
["ID","MTS","AMOUNT","RATE_DAILY","PERIOD"]
[347696855,1736073060237,-1944.64,8.493e-05,2]
[347696856,1736073060246,-4964.91,8.493e-05,2]
[347696857,1736073060257,-2791.16,8.493e-05,2]
[347696858,1736073060267,-1047.52,8.493e-05,2]
[347696859,1736073060276,-678.23,8.493e-05,2]
[347696860,1736073060287,-500.0,8.493e-05,2]
[347696861,1736073060296,-500.0,8.493e-05,2]
[347696862,1736073060305,-500.0,8.493e-05,2]
[347696863,1736073060314,-500.0,8.493e-05,2]
[347696864,1736073060323,-500.0,8.493e-05,2]
[347696865,1736073060331,-1702.42,8.493e-05,2]
[347696866,1736073060340,-500.0,8.493e-05,2]
[347696867,1736073060349,-509.57,8.493e-05,2]
[347696868,1736073060358,-1332.86,8.493e-05,2]
[347696869,1736073060368,-2055.1,8.493e-05,2]
[347696870,1736073060377,-5964.19,8.493e-05,2]
[347696871,1736073060386,-500.0,8.493e-05,2]
[347696872,1736073060395,-500.0,8.493e-05,2]
[347696873,1736073060404,-500.0,8.493e-05,2]
[347696874,1736073060414,-500.0,8.493e-05,2]
[347696875,1736073060423,-500.0,8.493e-05,2]
[347696876,1736073060432,-500.0,8.493e-05,2]
[347696877,1736073060442,-714.83,8.493e-05,2]
[347696878,1736073060451,-500.0,8.493e-05,2]
[347696879,1736073060460,-500.0,8.493e-05,2]
[347696880,1736073060470,-1581.58,8.493e-05,2]
[347696881,1736073060479,-22486.0,8.493e-05,2]
[347696882,1736073060488,-500.0,8.493e-05,2]
[347696883,1736073060496,-500.0,8.493e-05,2]
[347696884,1736073060506,-500.0,8.493e-05,2]
[347696885,1736073060516,-500.0,8.493e-05,2]
[347696886,1736073060525,-500.0,8.493e-05,2]
[347696887,1736073060535,-500.0,8.493e-05,2]
[347696888,1736073060544,-1227.14,8.493e-05,2]
[347696889,1736073060553,-500.0,8.493e-05,2]
[347696890,1736073060563,-818.43,8.493e-05,2]
[347696891,1736073060572,-5808.82,8.493e-05,2]
[347696892,1736073060582,-500.0,8.493e-05,2]
[347696893,1736073060591,-1302.7,8.493e-05,2]
[347696894,1736073060600,-500.0,8.493e-05,2]
[347696895,1736073060610,-500.0,8.493e-05,2]
[347696896,1736073060622,-500.0,8.493e-05,2]
[347696897,1736073060631,-2458.16,8.493e-05,2]
[347696898,1736073060640,-500.0,8.493e-05,2]
[347696899,1736073060650,-500.0,8.493e-05,2]
[347696900,1736073060659,-1754.43,8.493e-05,2]
[347696901,1736073060668,-675.0,8.493e-05,2]
[347696902,1736073060677,-500.0,8.493e-05,2]
[347696903,1736073060687,-500.0,8.493e-05,2]
[347696904,1736073060698,-325.85247939,8.493e-05,2]
[347696905,1736073060707,-514.78,8.493e-05,2]
[347696906,1736073060717,-1304.1,8.493e-05,2]
[347696907,1736073060726,-500.0,8.493e-05,2]
[347696908,1736073060736,-500.0,8.493e-05,2]
[347696909,1736073060746,-500.0,8.493e-05,2]
[347696910,1736073060754,-500.0,8.493e-05,2]
[347696911,1736073060766,-5387.26,8.493e-05,2]
[347696912,1736073060775,-500.0,8.493e-05,2]
[347696913,1736073060784,-500.0,8.493e-05,2]
[347696914,1736073060794,-3629.76,8.493e-05,2]
[347696915,1736073060803,-500.0,8.493e-05,2]
[347696916,1736073060812,-3235.55,8.493e-05,2]
[347696917,1736073060821,-500.0,8.493e-05,2]
[347696918,1736073060831,-1360.04,8.493e-05,2]
[347696919,1736073060840,-965.04,8.493e-05,2]
[347696920,1736073060849,-500.0,8.493e-05,2]
[347696921,1736073060859,-500.0,8.493e-05,2]
[347696922,1736073060868,-500.0,8.493e-05,2]
[347696923,1736073060878,-500.0,8.493e-05,2]
[347696924,1736073060887,-500.0,8.493e-05,2]
[347696925,1736073060897,-8457.77,8.493e-05,2]
[347696926,1736073060906,-1619.88,8.493e-05,2]
[347696927,1736073060916,-500.0,8.493e-05,2]
[347696928,1736073060926,-500.0,8.493e-05,2]
[347696929,1736073060935,-500.0,8.493e-05,2]
[347696930,1736073060945,-500.0,8.493e-05,2]
[347696931,1736073060953,-500.0,8.493e-05,2]
[347696932,1736073060961,-500.0,8.493e-05,2]
[347696933,1736073060970,-500.0,8.493e-05,2]
[347696934,1736073060980,-500.0,8.493e-05,2]
[347696935,1736073060989,-500.0,8.493e-05,2]
[347696936,1736073060998,-500.0,8.493e-05,2]
[347696937,1736073061010,-500.0,8.493e-05,2]
[347696938,1736073061019,-1821.63,8.493e-05,2]
[347696939,1736073061028,-500.0,8.493e-05,2]
[347696940,1736073061038,-3994.03,8.493e-05,2]
[347696941,1736073061047,-4062.07,8.493e-05,2]
[347696942,1736073061056,-5788.17,8.493e-05,2]
[347696943,1736073061065,-500.0,8.493e-05,2]
[347696944,1736073061074,-2653.92,8.493e-05,2]
[347696945,1736073061083,-573.65,8.493e-05,2]
[347696946,1736073061092,-500.0,8.493e-05,2]
[347696947,1736073061101,-1496.52,8.493e-05,2]
[347696948,1736073061111,-500.0,8.493e-05,2]
[347696949,1736073061120,-1155.87,8.493e-05,2]
[347696950,1736073061128,-1368.79,8.493e-05,2]
[347696951,1736073061137,-5039.88,8.493e-05,2]
[347696952,1736073061146,-506.20397142,8.493e-05,2]
[347696953,1736073061156,-500.0,8.493e-05,2]
[347696954,1736073061165,-2154.25,8.493e-05,2]
[347696955,1736073061174,-500.0,8.493e-05,2]
[347696956,1736073061183,-500.0,8.493e-05,2]
[347696957,1736073061192,-500.0,8.493e-05,2]
[347696958,1736073061201,-1020.47,8.493e-05,2]
[347696959,1736073061211,-4106.66,8.493e-05,2]
[347696960,1736073061220,-500.0,8.493e-05,2]
[347696961,1736073061230,-500.0,8.493e-05,2]
[347696962,1736073061239,-1726.03,8.493e-05,2]
[347696963,1736073061248,-500.0,8.493e-05,2]
[347696964,1736073061257,-500.0,8.493e-05,2]
[347696965,1736073061267,-12142.01,8.493e-05,2]
[347696966,1736073061276,-6672.98,8.493e-05,2]
[347696967,1736073061286,-151.0,8.493e-05,2]
[347696968,1736073061295,-500.0,8.493e-05,2]
[347696969,1736073061305,-500.0,8.493e-05,2]
[347696970,1736073061314,-950.85,8.493e-05,2]
[347696971,1736073061323,-855.95,8.493e-05,2]
[347696972,1736073061332,-1159.36,8.493e-05,2]
[347696973,1736073061341,-505.1446142,8.493e-05,2]
[347696974,1736073061350,-500.0,8.493e-05,2]
[347696975,1736073061359,-500.0,8.493e-05,2]
[347696976,1736073061369,-500.0,8.493e-05,2]
[347696977,1736073061378,-1987.28,8.493e-05,2]
[347696978,1736073061387,-500.0,8.493e-05,2]
[347696979,1736073061396,-500.0,8.493e-05,2]
[347696980,1736073061406,-500.0,8.493e-05,2]
[347696981,1736073061415,-1460.51,8.493e-05,2]
[347696982,1736073061424,-514.365953,8.493e-05,2]
[347696983,1736073061433,-500.0,8.493e-05,2]
[347696984,1736073061441,-3002.76,8.493e-05,2]
[347696985,1736073061451,-500.0,8.493e-05,2]
[347696986,1736073061460,-500.0,8.493e-05,2]
[347696987,1736073061469,-586.93,8.493e-05,2]
[347696988,1736073061478,-501.7512047,8.493e-05,2]
[347696989,1736073061487,-500.0,8.493e-05,2]
[347696990,1736073061497,-500.0,8.493e-05,2]
[347696991,1736073061506,-500.0,8.493e-05,2]
[347696992,1736073061517,-500.0,8.493e-05,2]
[347696993,1736073061527,-500.0,8.493e-05,2]
[347696994,1736073061536,-500.0,8.493e-05,2]
[347696995,1736073061545,-5216.95,8.493e-05,2]
[347696996,1736073061554,-500.0,8.493e-05,2]
[347696997,1736073061563,-373.88785214,8.493e-05,2]
[347696998,1736073061573,-501.31701378,8.493e-05,2]
[347696999,1736073061582,-500.0,8.493e-05,2]
[347697000,1736073061591,-500.0,8.493e-05,2]
[347697001,1736073061600,-830.94,8.493e-05,2]
[347697002,1736073061609,-500.0,8.493e-05,2]
[347697003,1736073061622,-6065.56,8.493e-05,2]
[347697004,1736073061631,-500.0,8.493e-05,2]
[347697005,1736073061640,-1245.32,8.493e-05,2]
[347697006,1736073061650,-500.0,8.493e-05,2]
[347697007,1736073061661,-2001.97,8.493e-05,2]
[347697008,1736073061670,-503.18362016,8.493e-05,2]
[347697009,1736073061679,-1038.806774,8.493e-05,2]
[347697010,1736073061688,-153.38865628,8.493e-05,2]
[347697011,1736073061699,-500.0,8.493e-05,2]
[347697012,1736073061709,-888.76,8.493e-05,2]
[347697013,1736073061719,-683.25,8.493e-05,2]
[347697014,1736073061728,-500.0,8.493e-05,2]
[347697015,1736073061738,-500.0,8.493e-05,2]
[347697016,1736073061747,-1777.99,8.493e-05,2]
[347697017,1736073061756,-500.0,8.493e-05,2]
[347697018,1736073061767,-537.34,8.493e-05,2]
[347697019,1736073061776,-398.23740876,8.493e-05,2]
[347697020,1736073061785,-500.0,8.493e-05,2]
[347697021,1736073061794,-500.0,8.493e-05,2]
[347697022,1736073061803,-697.87,8.493e-05,2]
[347697023,1736073061812,-500.0,8.493e-05,2]
[347697024,1736073061821,-500.0,8.493e-05,2]
[347697025,1736073061830,-2094.35,8.493e-05,2]
[347697026,1736073061979,-526.43,8.493e-05,2]
[347697027,1736073061988,-500.0,8.493e-05,2]
[347697028,1736073061997,-867.33,8.493e-05,2]
[347697029,1736073062006,-500.0,8.493e-05,2]
[347697030,1736073062016,-764.62,8.493e-05,2]
[347697031,1736073062026,-4670.12,8.493e-05,2]
[347697032,1736073062035,-8271.74154446,8.493e-05,2]
[347697033,1736073062044,-531.01783004,8.493e-05,2]
[347697034,1736073062053,-500.0,8.493e-05,2]
[347697035,1736073062063,-500.0,8.493e-05,2]
[347697036,1736073062071,-1804.74,8.493e-05,2]
[347697037,1736073062080,-500.0,8.493e-05,2]
[347697038,1736073062090,-1318.92,8.493e-05,2]
[347697039,1736073062099,-500.0,8.493e-05,2]
[347697040,1736073062108,-2908.32,8.493e-05,2]
[347697041,1736073062117,-500.0,8.493e-05,2]
[347697042,1736073062127,-500.0,8.493e-05,2]
[347697043,1736073062136,-500.0,8.493e-05,2]
[347697044,1736073062145,-500.0,8.493e-05,2]
[347697045,1736073062154,-1369.41,8.493e-05,2]
[347697046,1736073062164,-500.0,8.493e-05,2]
[347697047,1736073062173,-500.0,8.493e-05,2]
[347697048,1736073062183,-500.0,8.493e-05,2]
[347697049,1736073062193,-500.0,8.493e-05,2]
[347697050,1736073062202,-1315.12,8.493e-05,2]
[347697051,1736073062212,-500.0,8.493e-05,2]
[347697052,1736073062225,-500.0,8.493e-05,2]
[347697053,1736073062236,-500.0,8.493e-05,2]
[347697054,1736073062245,-4502.35,8.493e-05,2]
[347697055,1736073062257,-751.41,8.493e-05,2]
[347697056,1736073062267,-500.0,8.493e-05,2]
[347697057,1736073062275,-500.0,8.493e-05,2]
[347697058,1736073062285,-500.0,8.493e-05,2]
[347697059,1736073062295,-789.96,8.493e-05,2]
[347697060,1736073062305,-500.0,8.493e-05,2]
[347697061,1736073062315,-500.0,8.493e-05,2]
[347697062,1736073062326,-1000.0,8.521e-05,2]
[347697063,1736073062337,-500.0,8.521e-05,2]
[347697064,1736073062346,-240.12197224,8.521e-05,2]
[347697065,1736073062354,-1016.31,8.528e-05,2]
[347697066,1736073062363,-421.82284518,8.535e-05,2]
[347697067,1736073062373,-631.43,8.547e-05,2]
[347697068,1736073062382,-1324.97,8.553e-05,2]
[347697069,1736073062391,-631.43,8.684e-05,2]
[347697070,1736073062402,-500.0,8.692e-05,2]
[347697071,1736073062411,-500.0,8.692e-05,2]
[347697072,1736073062421,-1287.52,8.692e-05,2]
[347697073,1736073062430,-2496.37,8.692e-05,2]
[347697074,1736073062440,-2796.19,8.692e-05,2]
[347697075,1736073062451,-1853.74,8.692e-05,2]
[347697076,1736073062460,-3951.49,8.692e-05,2]
[347697077,1736073062469,-1766.82,8.692e-05,2]
[347697078,1736073062479,-3384.14,8.692e-05,2]
[347697079,1736073062488,-3722.48,8.692e-05,2]
[347697080,1736073062497,-500.0,8.692e-05,2]
[347697081,1736073062507,-2401.98,8.692e-05,2]
[347697082,1736073062518,-5048.31,8.692e-05,2]
[347697083,1736073062527,-500.0,8.692e-05,2]
[347697084,1736073062537,-1661.72,8.692e-05,2]
[347697085,1736073062546,-1548.23,8.692e-05,2]
[347697086,1736073062556,-151.0,8.692e-05,2]
[347697087,1736073062566,-2302.39,8.692e-05,2]
[347697088,1736073062575,-500.0,8.693e-05,2]
[347697089,1736073062584,-500.0,8.693e-05,2]
[347697090,1736073062594,-500.0,8.693e-05,2]
[347697091,1736073062603,-500.0,8.693e-05,2]
[347697092,1736073062614,-500.0,8.693e-05,2]
[347697093,1736073062629,-500.0,8.693e-05,2]
[347697094,1736073062639,-500.0,8.693e-05,2]
[347697095,1736073062648,-500.0,8.693e-05,2]
[347697096,1736073062659,-500.0,8.693e-05,2]
[347697097,1736073062667,-500.0,8.693e-05,2]
[347697098,1736073062675,-237.43690808,8.693e-05,2]
[347697099,1736073062686,-240.88677756,8.693e-05,2]
[347697100,1736073062697,-229.08438625,8.693e-05,2]
[347697101,1736073062706,-500.0,8.693e-05,2]
[347697102,1736073062716,-500.0,8.693e-05,2]
[347697103,1736073062725,-500.0,8.693e-05,2]
[347697104,1736073062734,-500.0,8.693e-05,2]
[347697105,1736073062743,-500.0,8.693e-05,2]
[347697106,1736073062753,-500.0,8.693e-05,2]
[347697107,1736073062764,-616.56899495,8.693e-05,2]
[347697108,1736073062773,-500.0,8.693e-05,2]
[347697109,1736073062782,-500.0,8.693e-05,2]
[347697110,1736073062791,-341.38930594,8.693e-05,2]
[347697111,1736073062801,-500.0,8.693e-05,2]
[347697112,1736073062811,-500.0,8.693e-05,2]
[347697113,1736073062820,-500.0,8.693e-05,2]
[347697114,1736073062830,-500.0,8.693e-05,2]
[347697115,1736073062839,-240.93012697,8.693e-05,2]
[347697116,1736073062849,-642.92345324,8.693e-05,2]
[347697117,1736073062859,-500.0,8.693e-05,2]
[347697118,1736073062868,-500.0,8.693e-05,2]
[347697119,1736073062877,-500.0,8.693e-05,2]
[347697120,1736073062887,-500.0,8.693e-05,2]
[347697121,1736073062896,-500.0,8.693e-05,2]
[347697122,1736073062904,-500.0,8.693e-05,2]
[347697123,1736073062914,-500.0,8.693e-05,2]
[347697124,1736073062923,-500.0,8.693e-05,2]
[347697125,1736073062932,-500.0,8.693e-05,2]
[347697126,1736073062942,-500.0,8.693e-05,2]
[347697127,1736073062951,-500.0,8.693e-05,2]
[347697128,1736073062960,-500.0,8.693e-05,2]
[347697129,1736073062970,-502.89496878,8.693e-05,2]
[347697130,1736073062980,-500.0,8.693e-05,2]
[347697131,1736073062989,-500.0,8.693e-05,2]
[347697132,1736073062998,-500.0,8.693e-05,2]
[347697133,1736073063007,-500.0,8.693e-05,2]
[347697134,1736073063020,-500.0,8.693e-05,2]
[347697135,1736073063030,-500.0,8.693e-05,2]
[347697136,1736073063040,-500.0,8.693e-05,2]
[347697137,1736073063049,-500.0,8.693e-05,2]
[347697138,1736073063059,-500.0,8.693e-05,2]
[347697139,1736073063069,-500.0,8.693e-05,2]
[347697140,1736073063079,-412.83468857,8.693e-05,2]
[347697141,1736073063089,-500.0,8.693e-05,2]
[347697142,1736073063098,-500.0,8.693e-05,2]
[347697143,1736073063107,-300.0,8.693e-05,2]
[347697144,1736073063117,-248.71873835,8.693e-05,2]
[347697145,1736073063127,-500.0,8.693e-05,2]
[347697146,1736073063136,-500.0,8.693e-05,2]
[347697147,1736073063146,-500.0,8.693e-05,2]
[347697148,1736073063155,-522.4888022,8.693e-05,2]
[347697149,1736073063165,-500.0,8.693e-05,2]
[347697150,1736073063175,-500.0,8.693e-05,2]
[347697151,1736073063185,-500.0,8.693e-05,2]
[347697152,1736073063195,-500.0,8.693e-05,2]
[347697153,1736073063204,-500.0,8.693e-05,2]
[347697154,1736073063214,-500.0,8.693e-05,2]
[347697155,1736073063224,-500.0,8.693e-05,2]
[347697156,1736073063233,-500.0,8.693e-05,2]
[347697157,1736073063242,-500.0,8.693e-05,2]
[347697158,1736073063251,-500.0,8.693e-05,2]
[347697159,1736073063262,-500.0,8.693e-05,2]
[347697160,1736073063271,-500.0,8.693e-05,2]
[347697161,1736073063281,-500.0,8.693e-05,2]
[347697162,1736073063290,-500.0,8.693e-05,2]
[347697163,1736073063299,-500.0,8.693e-05,2]
[347697164,1736073063308,-500.0,8.693e-05,2]
[347697165,1736073063318,-568.95344272,8.693e-05,2]
[347697166,1736073063327,-449.02,8.693e-05,2]
[347697167,1736073063336,-500.0,8.693e-05,2]
[347697168,1736073063345,-500.0,8.693e-05,2]
[347697169,1736073063355,-500.0,8.693e-05,2]
[347697170,1736073063364,-500.0,8.693e-05,2]
[347697171,1736073063373,-500.0,8.693e-05,2]
[347697172,1736073063382,-500.0,8.693e-05,2]
[347697173,1736073063392,-500.0,8.693e-05,2]
[347697174,1736073063401,-500.0,8.693e-05,2]
[347697175,1736073063410,-500.0,8.693e-05,2]
[347697176,1736073063420,-501.82904628,8.693e-05,2]
[347697177,1736073063429,-501.01886297,8.693e-05,2]
[347697178,1736073063439,-642.92,8.693e-05,2]
[347697179,1736073063448,-500.85291338,8.693e-05,2]
[347697180,1736073063457,-500.0,8.693e-05,2]
[347697181,1736073063467,-1549.13,8.693e-05,2]
[347697182,1736073063476,-500.0,8.693e-05,2]
[347697183,1736073063485,-500.0,8.693e-05,2]
[347697184,1736073063495,-500.0,8.693e-05,2]
[347697185,1736073063505,-500.0,8.693e-05,2]
[347697186,1736073063516,-500.0,8.693e-05,2]
[347697187,1736073063525,-500.0,8.693e-05,2]
[347697188,1736073063535,-328.12,8.693e-05,7]
[347697189,1736073063545,-501.29610897,8.693e-05,2]
[347697190,1736073063555,-223.83564374,8.693e-05,2]
[347697191,1736073063564,-500.0,8.693e-05,2]
[347697192,1736073063574,-500.0,8.693e-05,2]
[347697193,1736073063583,-500.0,8.693e-05,2]
[347697194,1736073063593,-500.0,8.693e-05,2]
[347697195,1736073063603,-501.32636096,8.693e-05,2]
[347697196,1736073063613,-500.0,8.693e-05,2]
[347697197,1736073063625,-500.0,8.693e-05,2]
[347697198,1736073063635,-500.0,8.693e-05,2]
[347697199,1736073063644,-500.0,8.693e-05,2]
[347697200,1736073063653,-501.33061193,8.693e-05,2]
[347697201,1736073063664,-500.0,8.693e-05,2]
[347697202,1736073063674,-500.0,8.693e-05,2]
[347697203,1736073063683,-500.0,8.693e-05,2]
[347697204,1736073063692,-500.0,8.693e-05,2]
[347697205,1736073063703,-500.0,8.693e-05,2]
[347697206,1736073063713,-502.0937396,8.693e-05,2]
[347697207,1736073063723,-535.57545402,8.693e-05,2]
[347697208,1736073063733,-1000.0,8.693e-05,2]
[347697209,1736073063743,-500.0,8.693e-05,2]
[347697210,1736073063752,-500.0,8.693e-05,2]
[347697211,1736073063763,-500.0,8.693e-05,2]
[347697212,1736073063773,-500.0,8.693e-05,2]
[347697213,1736073063783,-500.0,8.693e-05,2]
[347697214,1736073063792,-500.0,8.693e-05,2]
[347697215,1736073063801,-500.0,8.693e-05,2]
[347697216,1736073063811,-500.0,8.693e-05,2]
[347697217,1736073063821,-500.0,8.693e-05,2]
[347697218,1736073063831,-500.0,8.693e-05,2]
[347697219,1736073063843,-500.0,8.693e-05,2]
[347697220,1736073063853,-500.0,8.693e-05,2]
[347697221,1736073063863,-500.0,8.693e-05,2]
[347697222,1736073063873,-500.0,8.693e-05,2]
[347697223,1736073063882,-522.41767288,8.693e-05,2]
[347697224,1736073063892,-607.01,8.693e-05,2]
[347697225,1736073063902,-500.0,8.693e-05,2]
[347697226,1736073063911,-500.0,8.693e-05,2]
[347697227,1736073063921,-500.0,8.693e-05,2]
[347697228,1736073063931,-500.0,8.693e-05,2]
[347697229,1736073063940,-500.0,8.693e-05,2]
[347697230,1736073063950,-500.0,8.693e-05,2]
[347697231,1736073063959,-501.71616879,8.693e-05,2]
[347697232,1736073063969,-500.0,8.693e-05,2]
[347697233,1736073063979,-500.0,8.693e-05,2]
[347697234,1736073063988,-500.0,8.693e-05,2]
[347697235,1736073063998,-500.0,8.693e-05,2]
[347697236,1736073064008,-500.0,8.693e-05,2]
[347697237,1736073064019,-500.0,8.693e-05,2]
[347697238,1736073064029,-500.0,8.693e-05,2]
[347697239,1736073064038,-500.0,8.693e-05,2]
[347697240,1736073064190,-500.0,8.693e-05,2]
[347697241,1736073064200,-500.0,8.693e-05,2]
[347697242,1736073064209,-500.0,8.693e-05,2]
[347697243,1736073064219,-500.0,8.693e-05,2]
[347697244,1736073064228,-500.0,8.693e-05,2]
[347697245,1736073064236,-500.0,8.693e-05,2]
[347697246,1736073064246,-500.0,8.693e-05,2]
[347697247,1736073064255,-500.0,8.693e-05,2]
[347697248,1736073064266,-500.0,8.693e-05,2]
[347697249,1736073064276,-500.0,8.693e-05,2]
[347697250,1736073064285,-500.0,8.693e-05,2]
[347697251,1736073064295,-500.0,8.693e-05,2]
[347697252,1736073064304,-500.0,8.693e-05,2]
[347697253,1736073064314,-500.0,8.693e-05,2]
[347697254,1736073064323,-500.0,8.693e-05,2]
[347697255,1736073064332,-500.0,8.693e-05,2]
[347697256,1736073064342,-500.0,8.693e-05,2]
[347697257,1736073064351,-500.0,8.693e-05,2]
[347697258,1736073064361,-501.51881691,8.693e-05,2]
[347697259,1736073064371,-500.0,8.693e-05,2]
[347697260,1736073064380,-500.0,8.693e-05,2]
[347697261,1736073064389,-500.0,8.693e-05,2]
[347697262,1736073064399,-501.8110684,8.693e-05,2]
[347697263,1736073064408,-500.0,8.693e-05,2]
[347697264,1736073064417,-500.0,8.693e-05,2]
[347697265,1736073064427,-500.0,8.693e-05,2]
[347697266,1736073064436,-500.0,8.693e-05,2]
[347697267,1736073064446,-500.0,8.693e-05,2]
[347697268,1736073064455,-500.0,8.693e-05,2]
[347697269,1736073064465,-500.0,8.693e-05,2]
[347697270,1736073064475,-500.0,8.693e-05,2]
[347697271,1736073064484,-500.0,8.693e-05,2]
[347697272,1736073064494,-500.0,8.693e-05,2]
[347697273,1736073064503,-500.0,8.693e-05,2]
[347697274,1736073064513,-500.0,8.693e-05,2]
[347697275,1736073064523,-500.0,8.693e-05,2]
[347697276,1736073064532,-500.0,8.693e-05,2]
[347697277,1736073064542,-500.0,8.693e-05,2]
[347697278,1736073064551,-500.0,8.693e-05,2]
[347697279,1736073064560,-500.0,8.693e-05,2]
[347697280,1736073064570,-500.0,8.693e-05,2]
[347697281,1736073064579,-500.0,8.693e-05,2]
[347697282,1736073064588,-500.0,8.693e-05,2]
[347697283,1736073064597,-500.0,8.693e-05,2]
[347697284,1736073064606,-500.0,8.693e-05,2]
[347697285,1736073064616,-500.0,8.693e-05,2]
[347697286,1736073064628,-2589.06,8.693e-05,2]
[347697287,1736073064638,-500.0,8.693e-05,2]
[347697288,1736073064647,-500.0,8.693e-05,2]
[347697289,1736073064656,-500.0,8.693e-05,2]
[347697290,1736073064666,-500.0,8.693e-05,2]
[347697291,1736073064676,-500.0,8.693e-05,2]
[347697292,1736073064685,-500.0,8.693e-05,2]
[347697293,1736073064694,-500.0,8.693e-05,2]
[347697294,1736073064704,-500.0,8.693e-05,2]
[347697295,1736073064713,-500.0,8.693e-05,2]
[347697296,1736073064723,-500.0,8.693e-05,2]
[347697297,1736073064732,-500.0,8.693e-05,2]
[347697298,1736073064741,-500.0,8.693e-05,2]
[347697299,1736073064750,-500.0,8.693e-05,2]
[347697300,1736073064760,-500.0,8.693e-05,2]
[347697301,1736073064769,-500.0,8.693e-05,2]
[347697302,1736073064779,-500.0,8.693e-05,2]
[347697303,1736073064789,-500.0,8.693e-05,2]
[347697304,1736073064799,-500.0,8.693e-05,2]
[347697305,1736073064808,-500.0,8.693e-05,2]
[347697306,1736073064817,-503.71145374,8.693e-05,2]
[347697307,1736073064827,-500.0,8.693e-05,2]
[347697308,1736073064836,-500.0,8.693e-05,2]
[347697309,1736073064846,-503.45673192,8.693e-05,2]
[347697310,1736073064855,-500.0,8.693e-05,2]
[347697311,1736073064864,-500.0,8.693e-05,2]
[347697312,1736073064873,-500.0,8.693e-05,2]
[347697313,1736073064882,-500.0,8.693e-05,2]
[347697314,1736073064891,-1031.44,8.693e-05,2]
[347697315,1736073064900,-500.0,8.693e-05,2]
[347697316,1736073064910,-500.0,8.693e-05,2]
[347697317,1736073064919,-500.0,8.693e-05,2]
[347697318,1736073064928,-500.0,8.693e-05,2]
[347697319,1736073064938,-580.64,8.693e-05,2]
[347697320,1736073064947,-500.0,8.693e-05,2]
[347697321,1736073064956,-500.0,8.693e-05,2]
[347697322,1736073064965,-500.0,8.693e-05,2]
[347697323,1736073064974,-500.0,8.693e-05,2]
[347697324,1736073064983,-500.0,8.693e-05,2]
[347697325,1736073064992,-500.0,8.693e-05,2]
[347697326,1736073065001,-500.0,8.693e-05,2]
[347697327,1736073065010,-500.0,8.693e-05,2]
[347697328,1736073065020,-500.0,8.693e-05,2]
[347697329,1736073065030,-500.0,8.693e-05,2]
[347697330,1736073065039,-500.0,8.693e-05,2]
[347697331,1736073065048,-500.0,8.693e-05,2]
[347697332,1736073065058,-500.0,8.693e-05,2]
[347697333,1736073065067,-500.0,8.693e-05,2]
[347697334,1736073065076,-500.0,8.693e-05,2]
[347697335,1736073065085,-500.0,8.693e-05,2]
[347697336,1736073065094,-150.0,8.693e-05,2]
[347697337,1736073065103,-500.0,8.693e-05,2]
[347697338,1736073065113,-516.11630185,8.693e-05,2]
[347697339,1736073065121,-500.0,8.693e-05,2]
[347697340,1736073065131,-5000.0,8.693e-05,2]
[347697341,1736073065140,-500.0,8.693e-05,2]
[347697342,1736073065149,-746.64,8.693e-05,2]
[347697343,1736073065159,-500.0,8.693e-05,2]
[347697344,1736073065168,-500.0,8.693e-05,2]
[347697345,1736073065177,-500.0,8.693e-05,2]
[347697346,1736073065186,-500.0,8.693e-05,2]
[347697347,1736073065195,-500.0,8.693e-05,2]
[347697348,1736073065204,-500.0,8.693e-05,2]
[347697349,1736073065214,-500.0,8.693e-05,2]
[347697350,1736073065223,-501.88809348,8.693e-05,2]
[347697351,1736073065231,-500.0,8.693e-05,2]
[347697352,1736073065241,-500.0,8.693e-05,2]
[347697353,1736073065251,-500.0,8.693e-05,2]
[347697354,1736073065260,-500.0,8.693e-05,2]